bitfinex/quotes_ETHUSD_20250523
["timestamp","ask_amount","ask_price","bid_price","bid_amount"]
[1748008845857,2.57714286,2584.5,2584.4,24.60620993]
[1748008846058,3.87101769,2583.3,2582.6,0.17]
[1748008846234,5.05611946,2583.3,2583.2,0.77286512]
[1748008846433,1.18510177,2583.3,2583.2,0.77286512]
[1748008846660,15.4691653,2583.9,2583.2,4.64389899]
[1748008846844,8.0,2584.6,2583.3,0.03870988]
[1748008846845,3.86996904,2584.0,2583.3,0.03870988]
[1748008847047,11.597,2584.2,2583.3,0.32314582]
[1748008847247,3.87035518,2583.8,2583.4,0.32313331]
[1748008847582,3.87071801,2583.5,2583.4,0.32313331]
[1748008847740,3.87071801,2583.5,2583.4,20.28113331]
[1748008847943,3.87054873,2583.7,2583.4,20.28113331]
[1748008848165,3.87071801,2583.5,2583.4,20.28113331]
[1748008848973,3.87071801,2583.5,2582.7,16.7]
[1748008848974,3.8713174,2583.1,2583.0,19.958]
[1748008849290,3.8720669,2582.6,2582.5,19.96]
[1748008849436,4.21744848,2583.5,2582.5,19.96]
[1748008849642,0.7661,2583.1,2582.6,0.03871975]
[1748008849866,0.7661,2583.1,2582.6,1.99987198]
[1748008850040,0.7661,2583.1,2582.7,19.96]
[1748008850251,3.87176707,2582.8,2582.7,19.96]
[1748008851458,3.87166279,2582.9,2582.7,19.96]
[1748008851663,3.87176707,2582.8,2582.7,19.96]
[1748008852082,3.87161717,2582.9,2582.7,19.96]
[1748008852241,3.87151258,2583.0,2582.7,19.96]
[1748008852441,3.87157544,2583.0,2582.7,19.96]
[1748008852641,3.87165282,2582.9,2582.7,21.956]
[1748008852895,0.7661,2583.1,2582.7,21.956]
[1748008853096,3.87157043,2583.0,2582.7,21.956]
[1748008853298,0.7661,2583.1,2582.7,21.956]
[1748008853496,0.7986,2583.4,2582.9,3.87153916]
[1748008853805,4.19625406,2583.3,2583.0,17.09115392]
[1748008854147,0.32512871,2583.3,2583.0,20.96250129]
[1748008854348,0.32512871,2583.3,2583.0,17.09115392]
[1748008854591,3.87065712,2583.6,2583.0,20.96253664]
[1748008854805,0.7812,2583.8,2583.0,17.09115392]
[1748008855096,0.7673,2584.2,2583.2,8.0]
[1748008855260,3.86951758,2584.4,2583.8,3.87024942]
[1748008855443,3.86974772,2584.2,2583.9,20.823]
[1748008855645,3.86937905,2584.4,2584.0,20.823]
[1748008855849,2.57714286,2584.5,2584.1,20.823]
[1748008856083,6.44651,2584.5,2584.1,20.823]
[1748008856441,2.57714286,2584.5,2584.1,20.823]
[1748008857162,3.86944699,2584.4,2584.1,20.823]
[1748008857348,2.57714286,2584.5,2584.0,16.705]
[1748008857555,3.86981927,2584.1,2584.0,37.528]
[1748008857866,3.86958089,2584.3,2584.0,37.528]
[1748008858194,2.57714286,2584.5,2584.0,37.528]
[1748008858343,2.57714286,2584.5,2584.1,0.59663614]
[1748008858544,2.57714286,2584.5,2584.0,37.528]
[1748008859617,2.57714286,2584.5,2584.0,41.39789362]
[1748008859817,2.57714286,2584.5,2584.0,37.528]
[1748008860016,6.44643996,2584.5,2584.0,37.528]
[1748008860187,3.86940364,2584.4,2584.0,37.528]
[1748008860517,1.03158436,2584.4,2584.0,37.528]
[1748008860816,6.44641875,2584.5,2584.0,37.528]
[1748008860987,3.86937006,2584.4,2584.0,37.528]
[1748008861324,6.44640043,2584.5,2584.0,37.528]
[1748008861466,2.57714286,2584.5,2584.0,37.528]
[1748008861662,3.86945772,2584.4,2584.0,37.528]
[1748008861867,3.86981927,2584.1,2584.0,16.705]
[1748008862202,4.63724785,2584.2,2584.0,37.524]
[1748008862541,4.63718842,2584.2,2584.0,16.705]
[1748008862669,1.0315872,2584.4,2584.1,20.819]
[1748008863033,3.34464286,2584.5,2584.1,20.819]
[1748008863166,3.86981927,2584.1,2584.0,16.705]
[1748008863518,3.87041839,2583.7,2583.6,20.819]
[1748008863670,3.87056819,2583.6,2583.5,20.818]
[1748008863870,0.7675,2583.9,2583.5,20.818]
[1748008864101,3.87056819,2583.6,2583.5,20.818]
[1748008864585,0.7675,2583.9,2583.5,20.818]
[1748008864791,4.63770676,2583.9,2583.5,20.818]
[1748008864999,3.87056819,2583.6,2583.5,20.818]
[1748008865914,1.23127068,2583.9,2583.5,20.818]
[1748008866083,3.87056819,2583.6,2583.5,20.818]
[1748008866286,0.7675,2583.9,2583.5,20.818]
[1748008866593,3.87050337,2583.7,2583.5,20.818]
[1748008866907,0.7675,2583.9,2583.5,20.818]
[1748008867079,4.63763199,2583.9,2583.5,20.818]
[1748008867285,3.87056819,2583.6,2583.5,20.818]
[1748008867614,3.87090747,2583.4,2583.1,16.702]
[1748008867807,3.87090747,2583.4,2583.2,20.819]
[1748008868103,3.87064715,2583.6,2583.2,20.819]
[1748008868405,0.4637632,2583.8,2583.2,20.819]
[1748008868602,3.87089152,2583.4,2583.1,16.702]
[1748008868805,3.87086784,2583.4,2583.3,20.819]
[1748008869007,4.64876754,2583.2,2583.1,16.702]
[1748008869308,4.64876754,2583.2,2583.1,37.521]
[1748008869614,0.7776,2583.2,2583.1,37.521]
[1748008869801,0.7514,2584.0,2583.1,41.2731]
[1748008870004,0.7514,2584.0,2583.2,3.87102336]
[1748008870180,3.87064325,2583.6,2583.1,37.521]
[1748008870380,0.7514,2584.0,2583.1,37.521]
[1748008870610,3.87067481,2583.6,2583.1,20.57330037]
[1748008870918,3.87043591,2583.7,2583.2,24.69208978]
[1748008871113,0.7514,2584.0,2583.2,20.821]
[1748008871488,4.62141155,2584.0,2583.1,16.702]
[1748008871806,3.87116754,2583.2,2583.1,16.702]
[1748008872338,0.7535,2583.3,2583.1,16.702]
[1748008872607,8.23614722,2584.0,2583.1,16.702]
[1748008872608,0.8264,2583.7,2583.1,39.0004691]
[1748008872806,3.87102504,2583.3,2583.1,37.523]
[1748008873178,0.8264,2583.7,2583.2,3.87107693]
[1748008873377,0.7917,2584.0,2583.2,0.765]
[1748008873684,3.87049658,2583.7,2583.2,4.63616572]
[1748008873881,4.66169093,2584.0,2583.2,4.71499309]
[1748008874083,0.7917,2584.0,2583.2,4.6360994]
[1748008874288,3.87034571,2583.8,2583.3,3.87092581]
[1748008874489,3.87042699,2583.7,2583.2,4.63605431]
[1748008874839,0.7917,2584.0,2583.6,3.8704621]
[1748008875045,2.57714286,2584.5,2583.8,0.8005]
[1748008875206,2.57714286,2584.5,2584.2,3.86964894]
[1748008875556,2.57714286,2584.5,2584.3,24.09937599]
[1748008875833,2.57714286,2584.5,2584.4,3.86937006]
[1748008875986,2.57714286,2584.5,2584.4,4.62557006]
[1748008876923,2.57714286,2584.5,2584.4,4.66425907]
[1748008876924,0.79591935,2584.5,2584.4,4.66425907]
[1748008877242,0.79591935,2584.5,2584.4,16.57556315]
[1748008877682,0.79591935,2584.5,2584.4,23.07556315]
[1748008877888,0.79591935,2584.5,2584.4,54.90456315]
[1748008878792,0.62655431,2584.5,2584.4,63.45456315]
[1748008878988,0.30321207,2584.5,2584.4,63.45456315]
[1748008879188,0.04840379,2584.5,2584.4,63.45456315]
[1748008879732,0.04840379,2584.5,2584.4,62.89856315]
[1748008880934,0.8089,2586.2,2584.6,0.55]
[1748008881116,3.86710262,2586.0,2584.8,8.0]
[1748008881318,4.67568097,2586.2,2585.3,3.86790484]
[1748008881486,3.86729349,2585.8,2585.4,36.926]
[1748008881691,0.8089,2586.2,2585.6,3.86753161]
[1748008881886,0.8089,2586.2,2585.4,40.79381875]
[1748008881887,0.8089,2586.2,2585.4,36.926]
[1748008882106,4.6755829,2586.2,2585.5,3.86772384]
[1748008882331,3.86684545,2586.1,2585.4,44.48643938]
[1748008882703,0.8089,2586.2,2585.6,3.86749544]
[1748008882904,0.8089,2586.2,2585.4,40.79384629]
[1748008883109,3.86696556,2586.1,2585.5,3.86764256]
[1748008883417,3.86692822,2586.1,2585.6,3.86756729]
[1748008883626,0.8089,2586.2,2585.5,14.5]
[1748008883627,3.86697602,2586.0,2585.5,14.5]
[1748008883939,0.75366348,2586.1,2585.6,20.222]
[1748008884116,3.86716802,2585.9,2585.6,20.222]
[1748008884295,4.67560511,2586.2,2585.7,20.222]
[1748008884486,3.86739706,2585.8,2585.4,16.701]
[1748008884686,3.8674402,2585.7,2585.5,20.219]
[1748008885167,4.67564289,2586.2,2585.4,16.701]
[1748008885292,1.19028763,2586.1,2585.5,20.219]
[1748008885497,3.86757425,2585.6,2585.5,20.219]
[1748008885698,5.05714339,2586.1,2585.5,20.219]
[1748008885699,1.19028763,2586.1,2585.5,20.219]
[1748008885910,3.86682649,2586.1,2585.5,20.219]
[1748008886437,3.86738922,2585.8,2585.5,20.219]
[1748008886636,3.8671707,2585.9,2585.6,20.219]
[1748008886801,4.67566702,2586.2,2585.6,20.219]
[1748008887136,3.86727511,2585.8,2585.7,20.219]
[1748008887339,3.86764855,2585.6,2585.4,16.701]
[1748008887551,0.38672751,2585.8,2585.6,20.219]
[1748008887851,3.8669651,2586.1,2585.5,3.86770997]
[1748008887995,3.8669651,2586.1,2585.7,20.217]
[1748008888201,0.8089,2586.2,2585.7,20.217]
[1748008888202,0.8089,2586.2,2585.7,24.08439852]
[1748008888446,2.86107151,2586.3,2585.6,0.7745]
[1748008888648,3.86679747,2586.2,2585.7,20.217]
[1748008888795,4.62070437,2586.2,2585.7,20.217]
[1748008889018,0.7539069,2586.2,2585.8,20.217]
[1748008889245,2.86107151,2586.3,2585.8,20.217]
[1748008889456,2.86107151,2586.3,2585.4,16.701]
[1748008889665,2.86107151,2586.3,2585.9,20.217]
[1748008890258,2.86107151,2586.3,2586.0,20.217]
[1748008890457,3.86669801,2586.2,2586.0,20.217]
[1748008890648,5.00723465,2586.2,2586.0,20.217]
[1748008890957,1.14053664,2586.2,2585.9,16.694]
[1748008891157,5.00734033,2586.2,2586.1,20.215]
[1748008892044,5.00734033,2586.2,2585.9,16.694]
[1748008892045,1.14053664,2586.2,2585.9,16.694]
[1748008892381,3.86697602,2586.0,2585.9,16.694]
[1748008892539,2.86107151,2586.3,2586.0,20.215]
[1748008892964,6.72767522,2586.3,2586.0,20.215]
[1748008893263,3.86675479,2586.2,2586.0,20.215]
[1748008893459,3.86671001,2586.2,2586.0,20.215]
[1748008893672,3.86682649,2586.1,2586.0,20.215]
[1748008893851,3.86682649,2586.1,2586.0,20.214]
[1748008894837,3.86697602,2586.0,2585.9,16.694]
[1748008895040,3.86697602,2586.0,2585.9,36.908]
[1748008895852,3.86697602,2586.0,2585.9,16.694]
[1748008895853,4.68337602,2586.0,2585.9,16.694]
[1748008896164,14.1726921,2586.0,2585.9,16.694]
[1748008896373,0.7774,2585.0,2584.0,20.214]
[1748008896569,3.86877354,2584.8,2584.3,3.86941789]
[1748008896729,0.46458232,2584.9,2584.1,1.0179]
[1748008897057,3.86893754,2584.7,2584.2,3.86964983]
[1748008897262,3.86908472,2584.6,2584.1,1.0179]
[1748008897570,0.7774,2585.0,2584.2,20.214]
[1748008897874,3.86863894,2584.9,2584.0,3.86987968]
[1748008898091,3.86863894,2584.9,2583.7,0.8079]
[1748008898235,0.46460389,2584.8,2583.9,3.87004097]
[1748008898773,0.7889,2584.4,2583.7,0.8079]
[1748008898960,0.7889,2584.7,2584.0,20.214]
[1748008899274,3.86933246,2584.5,2584.0,22.2354]
[1748008899484,0.7889,2584.7,2584.1,20.214]
[1748008899485,3.86978887,2584.2,2584.1,20.214]
[1748008900358,3.86907064,2584.6,2583.4,0.76787745]
[1748008900580,0.7889,2584.7,2583.5,20.217]
[1748008900761,3.87004836,2584.0,2583.5,24.0877024]
[1748008901095,0.7801,2584.4,2583.4,0.76787745]
[1748008901267,0.7801,2584.1,2582.9,3.87151005]
[1748008901586,3.87120302,2583.2,2582.5,4.07398655]
[1748008901753,3.87120302,2583.2,2583.0,20.217]
[1748008901935,3.87106327,2583.3,2583.0,20.217]
[1748008902134,0.7801,2583.4,2583.0,20.217]
[1748008902340,0.8219,2583.7,2583.1,0.03870998]
[1748008902685,0.8219,2583.7,2583.2,20.221]
[1748008902973,0.8219,2584.0,2583.3,3.8709296]
[1748008903174,3.87016101,2583.9,2583.2,20.221]
[1748008903336,3.87056894,2583.6,2583.2,21.0151]
[1748008903671,0.8219,2584.0,2583.3,20.221]
[1748008903866,3.87011881,2583.9,2583.3,20.221]
[1748008904106,0.46920188,2583.8,2583.3,20.221]
[1748008904273,3.87117992,2583.2,2582.6,0.7871]
[1748008904597,4.36311302,2584.3,2582.6,0.7871]
[1748008904598,0.803,2583.6,2582.7,20.221]
[1748008904800,0.803,2583.6,2582.3,0.7871]
[1748008905100,3.87155649,2583.0,2582.4,23.80126943]
[1748008905255,3.87201962,2582.7,2582.4,0.32325844]
[1748008905459,4.67448405,2583.0,2582.4,0.32325844]
[1748008905691,3.8720669,2582.6,2582.5,19.929]
[1748008905873,3.87221684,2582.5,2582.4,0.32325844]
[1748008906107,9.03832986,2582.5,2582.4,0.32325844]
[1748008906262,4.67596669,2582.0,2581.9,0.44970679]
[1748008906602,0.803,2582.0,2581.2,19.932]
[1748008906776,3.87377691,2581.5,2581.2,19.932]
[1748008906981,3.87368241,2581.6,2581.2,19.932]
[1748008907302,3.87321667,2581.9,2581.3,3.87392923]
[1748008907458,0.803,2582.0,2581.2,22.31264574]
[1748008907662,4.6759867,2582.0,2581.4,3.87372993]
[1748008908000,3.87316459,2581.9,2581.4,3.87372993]
[1748008908207,3.87340068,2581.8,2581.2,22.31264574]
[1748008908365,3.87313744,2581.9,2581.2,26.1868031]
[1748008908558,3.87291919,2582.1,2581.5,3.87363166]
[1748008908755,3.87286573,2582.1,2581.5,3.87363166]
[1748008908957,3.87297133,2582.0,2581.4,3.87386061]
[1748008909399,3.87242312,2582.4,2581.6,3.87355834]
[1748008909600,0.7751,2582.6,2581.6,4.64706678]
[1748008909782,0.7751,2582.6,2582.0,3.87287406]
[1748008909988,3.87222657,2582.5,2582.1,36.643]
[1748008910221,3.87251674,2582.3,2582.2,19.938]
[1748008910809,3.87266671,2582.2,2582.1,16.705]
[1748008911107,0.7751,2582.6,2582.1,36.643]
[1748008911284,3.87259956,2582.3,2582.1,36.643]
[1748008911478,0.7751,2582.6,2582.1,36.643]
[1748008911680,4.64548659,2583.4,2582.1,40.59299309]
[1748008911878,3.87200745,2582.7,2582.1,44.46575008]
[1748008912068,0.32363755,2583.3,2582.1,44.46575008]
[1748008912069,0.32363755,2583.3,2582.1,40.59299309]
[1748008912273,0.32363755,2583.3,2582.2,19.941]
[1748008912274,3.87261765,2582.3,2582.2,19.941]
[1748008912578,3.87205991,2582.7,2582.2,19.941]
[1748008912793,3.87214102,2582.6,2582.2,19.941]
[1748008913104,3.87148086,2583.0,2582.2,19.941]
[1748008913274,3.87161717,2582.9,2582.2,19.941]
[1748008913480,0.7849,2582.8,2582.3,19.941]
[1748008913807,3.87236679,2582.4,2582.3,19.941]
[1748008914477,0.7849,2582.8,2582.3,19.941]
[1748008914676,9.25940091,2584.3,2582.4,0.0387264]
[1748008914677,3.8713174,2583.1,2582.4,0.0387264]
[1748008914877,3.8720822,2582.6,2582.4,2.38521341]
[1748008915109,11.602,2583.6,2582.1,17.5236]
[1748008915110,0.7849,2583.6,2582.7,0.7551]
[1748008915909,0.7849,2583.6,2583.1,3.87118223]
[1748008916073,3.87089185,2583.4,2583.2,19.943]
[1748008916272,4.65551,2583.6,2583.2,19.943]
[1748008916273,4.65552896,2583.6,2583.2,19.943]
[1748008916580,4.63086847,2583.9,2583.2,23.81413384]
[1748008916781,0.7607,2583.9,2583.2,23.89299309]
[1748008917010,3.87064733,2583.6,2583.2,23.89299309]
[1748008917211,3.87073755,2583.5,2583.2,23.89299309]
[1748008917410,3.87073755,2583.5,2583.1,16.709]
[1748008917411,3.87088205,2583.4,2583.3,19.943]
[1748008917564,0.7607,2583.9,2583.3,19.943]
[1748008918002,3.87064133,2583.6,2583.3,19.943]
[1748008918210,3.87072088,2583.5,2583.3,19.943]
[1748008918735,3.87073234,2583.5,2583.3,19.943]
[1748008919029,0.7964,2583.3,2582.8,19.941]
[1748008919323,3.8714536,2583.1,2582.4,4.70208921]
[1748008919523,3.8714536,2583.1,2582.5,23.81321211]
[1748008920042,3.87126761,2583.2,2582.6,3.87195236]
[1748008920257,0.7964,2583.3,2582.5,19.941]
[1748008920528,3.87154015,2583.0,2582.5,19.941]
[1748008920701,3.87168067,2582.9,2582.5,19.941]
[1748008920902,3.87153648,2583.0,2582.5,19.941]
[1748008921220,4.66745949,2583.3,2582.6,3.8720095]
[1748008921419,6.33322856,2583.3,2582.5,19.941]
[1748008921748,20.42,2584.1,2582.6,0.8302]
[1748008921926,16.28992736,2584.1,2582.8,3.87176707]
[1748008922244,16.28992736,2584.1,2582.7,8.03871025]
[1748008922245,3.870375,2583.8,2583.0,3.87131743]
[1748008922445,8.809,2584.0,2582.6,0.8302]
[1748008922747,3.87041839,2583.7,2582.8,3.87174569]
[1748008922945,0.809,2583.8,2582.7,19.941]
[1748008923155,0.809,2583.8,2582.7,23.81283095]
[1748008923454,3.87060302,2583.6,2583.1,3.87120981]
[1748008923947,3.87067447,2583.6,2583.1,3.87125665]
[1748008924148,0.809,2583.8,2582.7,19.941]
[1748008924447,0.809,2583.8,2582.8,2.46432508]
[1748008924654,3.87042574,2583.7,2582.8,2.46432508]
[1748008924813,0.809,2583.8,2582.8,6.33607295]
[1748008925012,8.0,2584.5,2582.8,6.33607295]
[1748008925013,0.829,2584.1,2582.9,0.7899]
[1748008925226,0.20194367,2585.5,2583.7,3.87032131]
[1748008925227,0.829,2584.4,2583.7,3.87032131]
[1748008925398,0.829,2584.4,2583.8,36.649]
[1748008925599,0.7531,2584.9,2583.8,36.649]
[1748008926032,4.62181189,2584.9,2583.9,19.941]
[1748008926239,3.86977242,2584.2,2583.9,19.941]
[1748008926737,3.86995148,2584.1,2583.9,19.941]
[1748008926912,6.19295148,2584.1,2583.9,19.941]
[1748008927116,3.86926036,2584.5,2583.9,19.941]
[1748008927329,0.38692604,2584.4,2583.9,19.941]
[1748008927534,3.86991154,2584.1,2583.9,19.941]
[1748008927714,3.86983318,2584.1,2583.9,19.941]
[1748008927916,0.38692604,2584.4,2583.9,19.941]
[1748008928119,3.86970048,2584.2,2583.9,19.941]
[1748008928320,3.86877127,2584.8,2583.9,19.941]
[1748008928539,2.323,2584.8,2583.9,19.941]
[1748008928712,3.87011881,2583.9,2583.8,16.708]
[1748008929050,4.63989628,2584.4,2583.8,16.708]
[1748008929051,0.7704,2584.4,2583.8,36.646]
[1748008929343,3.86977765,2584.2,2583.8,36.646]
[1748008929634,0.7704,2584.7,2583.8,36.646]
[1748008929840,3.86959376,2584.3,2583.8,40.51618282]
[1748008930027,3.8694522,2584.4,2583.8,40.51618282]
[1748008930228,3.86978168,2584.2,2583.8,36.646]
[1748008930447,0.7704,2584.7,2583.8,36.646]
[1748008930646,3.86990296,2584.1,2583.8,16.708]
[1748008930846,3.86978825,2584.2,2583.9,19.936]
[1748008931224,0.7704,2584.7,2583.9,24.61948132]
[1748008931424,3.86944524,2584.4,2583.9,24.61950352]
[1748008931727,0.7704,2584.7,2583.9,20.7494]
[1748008931936,3.8696936,2584.2,2583.9,20.7494]
[1748008932136,3.86960516,2584.3,2584.0,19.936]
[1748008932428,3.86962172,2584.3,2584.1,19.936]
[1748008932630,3.86966953,2584.2,2584.1,19.936]
[1748008932827,3.86966953,2584.2,2583.8,16.708]
[1748008932828,3.87011881,2583.9,2583.8,16.708]
[1748008933026,3.87011881,2583.9,2583.8,36.643]
[1748008933263,3.87011881,2583.9,2583.3,19.935]
[1748008933471,3.87101769,2583.3,2583.2,19.935]
[1748008933954,4.69801769,2583.3,2583.2,19.935]
[1748008934136,5.55490886,2583.3,2583.2,19.935]
[1748008934336,3.87139902,2583.1,2582.9,19.935]
[1748008934538,3.87146728,2583.0,2582.9,19.935]
[1748008935123,3.87251674,2582.3,2582.2,19.89]
[1748008935476,4.71505253,2582.7,2581.9,19.89]
[1748008935655,12.30280525,2582.6,2581.9,19.89]
[1748008935979,0.85689117,2583.3,2582.0,8.54347296]
[1748008936142,0.843,2583.7,2582.0,0.54347296]
[1748008936463,0.55,2583.6,2582.1,36.598]
[1748008936765,5.26353113,2583.7,2582.6,3.87206446]
[1748008936951,3.87176707,2582.8,2582.7,19.893]
[1748008937341,3.87216063,2582.6,2582.1,20.91968565]
[1748008937564,3.87226698,2582.5,2582.2,19.893]
[1748008937746,3.87230967,2582.5,2582.2,19.893]
[1748008938076,3.87171917,2582.9,2582.2,27.45961593]
[1748008938277,0.8001,2583.3,2582.9,3.87152849]
[1748008938432,0.8001,2583.7,2583.0,19.893]
[1748008938631,3.87110303,2583.3,2583.0,19.893]
[1748008938886,0.8001,2583.7,2583.0,19.893]
[1748008939043,3.87123977,2583.2,2583.0,19.893]
[1748008939226,3.87070252,2583.6,2583.0,19.893]
[1748008939426,3.87094766,2583.4,2583.0,19.893]
[1748008939787,3.87102713,2583.3,2583.0,20.43011226]
[1748008939949,3.87107998,2583.3,2583.0,19.893]
[1748008940559,0.8001,2583.7,2583.0,19.893]
[1748008941037,12.4323,2584.0,2583.1,20.57824031]
[1748008941342,0.8303,2584.0,2583.1,16.707]
[1748008941585,3.87011881,2583.9,2583.1,16.707]
[1748008941747,3.87101769,2583.3,2583.2,19.895]
[1748008942160,3.87100784,2583.4,2583.2,19.895]
[1748008942462,3.87101769,2583.3,2583.2,19.895]
[1748008942679,0.47004188,2583.8,2583.2,19.895]
[1748008943052,0.8303,2584.0,2583.3,0.0387096]
[1748008943234,3.86846244,2585.1,2583.3,0.0387096]
[1748008943235,0.8219,2584.8,2583.4,0.3419]
[1748008943432,3.86914116,2584.6,2583.5,3.90939927]
[1748008943691,3.86914116,2584.6,2583.7,8.3419]
[1748008943692,0.32320695,2584.5,2583.7,8.3419]
[1748008943902,0.32320695,2584.5,2584.1,3.86973312]
[1748008944035,0.32320695,2584.5,2584.2,36.602]
[1748008944232,3.86944513,2584.4,2584.3,19.895]
[1748008944435,4.19265208,2584.4,2584.3,19.895]
[1748008944672,0.32320695,2584.4,2584.3,19.895]
[1748008945177,4.19257701,2584.4,2584.3,19.895]
[1748008945391,0.32320695,2584.4,2584.3,19.895]
[1748008945553,4.19257701,2584.4,2584.3,19.895]
[1748008945736,3.86951979,2584.3,2584.2,16.707]
[1748008945939,3.86981927,2584.1,2584.0,19.892]
[1748008946181,3.87011881,2583.9,2583.8,19.892]
[1748008947281,3.86996904,2584.0,2583.8,19.892]
[1748008947282,3.86995458,2584.1,2583.8,19.892]
[1748008947577,3.87011881,2583.9,2583.8,19.892]
[1748008947784,5.03112305,2583.9,2583.8,19.892]
[1748008948688,3.87116754,2583.2,2583.1,19.892]
[1748008948853,3.87116754,2583.2,2582.5,20.5761369]
[1748008948854,3.8713174,2583.1,2583.0,19.892]
[1748008949347,5.03314914,2583.1,2583.0,19.892]
[1748008949543,0.7747,2583.4,2583.0,19.892]
[1748008949776,3.8713174,2583.1,2583.0,19.892]
[1748008950454,3.87175286,2582.9,2582.5,16.704]
[1748008950660,3.87115565,2583.3,2582.6,23.7640238]
[1748008950966,3.87167347,2582.9,2582.6,19.892]
[1748008951167,3.8715404,2583.0,2582.6,19.892]
[1748008951570,2.01217,2583.4,2582.6,19.892]
[1748008951778,3.87130375,2583.2,2582.6,23.76399739]
[1748008952083,0.7747,2583.4,2582.6,19.892]
[1748008952587,3.87139861,2583.1,2582.6,23.76403625]
[1748008953256,3.87150507,2583.0,2582.6,19.892]
[1748008953446,3.87073806,2583.5,2582.6,19.892]
[1748008953641,3.87156157,2583.0,2582.7,19.894]
[1748008953884,3.87101769,2583.3,2582.8,0.54347296]
[1748008954192,1.16100424,2583.9,2582.9,11.9429]
[1748008954357,3.87061281,2583.6,2583.0,3.87135493]
[1748008954542,4.65307626,2584.1,2583.0,3.87135493]
[1748008954742,3.8710753,2583.3,2582.9,11.9429]
[1748008954983,0.7832,2584.1,2582.9,11.9429]
[1748008954984,3.87117132,2583.2,2582.9,11.9429]
[1748008955298,3.86996904,2584.0,2582.9,15.8143757]
[1748008955477,0.4653169,2583.9,2582.9,15.51373757]
[1748008955653,0.4653169,2583.9,2583.0,3.87132359]
[1748008955850,0.4653169,2583.9,2582.9,15.51373757]
[1748008956177,0.4653169,2583.9,2582.9,19.38527794]
[1748008956369,3.87111269,2583.3,2583.0,19.894]
[1748008956782,3.8711793,2583.2,2583.0,19.894]
[1748008957095,0.7832,2584.1,2583.0,19.894]
[1748008957390,3.87098068,2583.4,2583.0,19.894]
[1748008957759,3.87066616,2583.6,2583.0,19.894]
[1748008957760,3.87071801,2583.5,2583.0,23.76545025]
[1748008957961,3.87089057,2583.4,2583.0,19.894]
[1748008958363,3.1062,2584.1,2583.0,23.46484339]
[1748008958559,0.7832,2584.1,2583.1,3.8713174]
[1748008958758,0.7832,2584.1,2583.0,19.894]
[1748008958975,0.7832,2584.1,2583.8,3.87015682]
[1748008959175,3.8695896,2584.3,2583.9,19.894]
[1748008959376,3.86958799,2584.3,2584.0,19.894]
[1748008959583,3.86981927,2584.1,2584.0,19.894]
[1748008959915,3.86971032,2584.2,2584.0,19.894]
[1748008960264,3.86977856,2584.2,2584.0,19.894]
[1748008960488,3.86952,2584.3,2584.0,19.894]
[1748008960489,3.86981927,2584.1,2584.0,19.894]
[1748008960844,3.86985544,2584.1,2584.0,19.893]
[1748008961127,0.7769,2584.7,2584.0,19.893]
[1748008961296,3.86977666,2584.2,2584.0,19.893]
[1748008961699,3.86981927,2584.1,2584.0,19.893]
[1748008961892,3.87026859,2583.8,2583.7,16.706]
[1748008962086,3.87026859,2583.8,2583.7,36.599]
[1748008963240,4.69668836,2584.4,2583.7,36.599]
[1748008963401,1.65304784,2584.4,2583.7,36.599]
[1748008963589,3.87009479,2584.0,2583.7,36.599]
[1748008964023,1.65304784,2584.4,2583.7,36.599]
[1748008964243,3.86951979,2584.3,2583.8,4.31149729]
[1748008964450,3.86927951,2584.5,2583.8,0.4413]
[1748008964603,0.36044629,2584.6,2584.2,3.86963824]
[1748008964799,4.2295458,2584.6,2584.3,19.821]
[1748008964999,3.86922035,2584.5,2583.9,3.70403]
[1748008965238,3.86922035,2584.5,2583.8,0.4413]
[1748008965239,3.8692862,2584.5,2584.0,23.69094612]
[1748008965538,2.323,2585.0,2584.0,19.821]
[1748008965751,0.8702,2585.1,2584.3,3.8693982]
[1748008965930,3.86883961,2584.8,2584.2,4.31089771]
[1748008966136,0.8702,2585.1,2584.3,3.86944845]
[1748008966337,3.86909404,2584.6,2584.3,0.81804176]
[1748008966515,3.86940255,2584.4,2584.2,0.4413]
[1748008966719,3.86930429,2584.5,2584.3,19.819]
[1748008967112,3.86937006,2584.4,2584.3,19.819]
[1748008967306,3.86847195,2585.0,2584.3,19.819]
[1748008967507,3.86937006,2584.4,2583.9,4.31130406]
[1748008967752,3.86862161,2584.9,2584.0,19.819]
[1748008968045,3.86930929,2584.5,2584.0,23.6889523]
[1748008968224,3.86947133,2584.4,2584.0,19.819]
[1748008968430,3.86933212,2584.5,2584.0,23.68896696]
[1748008968840,3.86925654,2584.5,2584.0,23.68892327]
[1748008969158,3.86874863,2584.9,2584.3,3.86949303]
[1748008969357,3.86871345,2584.9,2584.4,3.86936839]
[1748008969641,3.86865861,2584.9,2584.4,3.86931353]
[1748008969842,3.86898815,2584.7,2584.5,19.818]
[1748008970048,0.8702,2585.1,2584.5,19.818]
[1748008970606,3.86872062,2584.9,2584.5,19.818]
[1748008970805,3.1911,2585.8,2584.6,0.03868637]
[1748008971120,3.86810567,2585.3,2584.7,16.701]
[1748008971323,3.86841042,2585.1,2584.7,16.701]
[1748008971522,3.86845577,2585.1,2584.8,19.818]
[1748008971825,3.1911,2585.8,2584.8,19.818]
[1748008972135,3.86842249,2585.1,2584.9,19.815]
[1748008972656,3.86824309,2585.2,2584.9,19.815]
[1748008973144,3.8681627,2585.3,2584.9,19.815]
[1748008973309,0.31911,2585.7,2584.9,19.815]
[1748008973504,0.31911,2585.7,2584.7,28.299]
[1748008973505,0.8719,2585.4,2584.7,16.701]
[1748008973847,3.86877127,2584.8,2584.7,16.701]
[1748008974048,0.31911,2585.7,2584.7,36.516]
[1748008974232,3.86860842,2585.0,2584.7,36.516]
[1748008974805,3.86790134,2585.4,2584.7,36.516]